fUSD/lending_fUSD_20240523
["ID","MTS","AMOUNT","RATE_DAILY","PERIOD"]
[327757471,1716433849915,-500.0,0.00022739,2]
[327757472,1716433849925,-500.0,0.00022739,2]
[327757473,1716433849935,-500.0,0.00022739,2]
[327757474,1716433849945,-500.0,0.00022739,2]
[327757475,1716433849958,-500.0,0.00022739,2]
[327757476,1716433849970,-787.33,0.00022739,2]
[327757477,1716433849980,-4203.88,0.00022739,2]
[327757478,1716433849991,-500.0,0.00022739,2]
[327757479,1716433850002,-500.0,0.00022739,2]
[327757480,1716433850012,-1462.29,0.00022739,2]
[327757481,1716433850021,-397.54887823,0.00022739,2]
[327757482,1716433850031,-500.0,0.00022739,2]
[327757483,1716433850041,-500.0,0.00022739,2]
[327757484,1716433850052,-500.0,0.00022739,2]
[327757485,1716433850062,-500.0,0.00022739,2]
[327757486,1716433850071,-500.0,0.00022739,2]
[327757487,1716433850081,-2886.35,0.00022739,2]
[327757488,1716433850091,-500.0,0.00022739,2]
[327757489,1716433850102,-500.0,0.00022739,2]
[327757490,1716433850111,-500.0,0.00022739,2]
[327757491,1716433850122,-500.0,0.00022739,2]
[327757492,1716433850136,-529.07,0.00022739,2]
[327757493,1716433850145,-645.65,0.00022739,2]
[327757494,1716433850154,-500.49,0.00022739,2]
[327757495,1716433850164,-500.0,0.00022739,2]
[327757496,1716433850174,-613.89,0.00022739,2]
[327757497,1716433850183,-500.0,0.00022739,2]
[327757498,1716433850193,-643.78,0.00022739,2]
[327757499,1716433850203,-605.44,0.00022739,2]
[327757500,1716433850212,-3273.81,0.00022739,2]
[327757501,1716433850221,-500.0,0.00022739,2]
[327757502,1716433850231,-500.0,0.00022739,2]
[327757503,1716433850240,-500.0,0.00022739,2]
[327757504,1716433850249,-500.61,0.00022739,2]
[327757505,1716433850258,-1213.75,0.00022739,2]
[327757506,1716433850268,-500.0,0.00022739,2]
[327757507,1716433850278,-500.0,0.00022739,2]
[327757508,1716433850287,-743.8,0.00022739,2]
[327757509,1716433850298,-500.0,0.00022739,2]
[327757510,1716433850307,-500.0,0.00022739,2]
[327757511,1716433850316,-500.0,0.00022739,2]
[327757512,1716433850325,-500.0,0.00022739,2]
[327757513,1716433850334,-500.0,0.00022739,2]
[327757514,1716433850344,-2826.78,0.00022739,2]
[327757515,1716433850354,-500.0,0.00022739,2]
[327757516,1716433850363,-500.0,0.00022739,2]
[327757517,1716433850373,-500.0,0.00022739,2]
[327757518,1716433850382,-500.0,0.00022739,2]
[327757519,1716433850391,-539.98,0.00022739,2]
[327757520,1716433850400,-962.49,0.00022739,2]
[327757521,1716433850410,-776.86,0.00022739,2]
[327757522,1716433850419,-500.0,0.00022739,2]
[327757523,1716433850428,-500.0,0.00022739,2]
[327757524,1716433850438,-500.0,0.00022739,2]
[327757525,1716433850447,-809.89,0.00022739,2]
[327757527,1716433850457,-560.91,0.00022739,2]
[327757528,1716433850466,-501.66,0.00022739,2]
[327757529,1716433850475,-1401.24,0.00022739,2]
[327757530,1716433850485,-597.1,0.00022739,2]
[327757531,1716433850495,-500.0,0.00022739,2]
[327757532,1716433850504,-594.65,0.00022739,2]
[327757533,1716433850514,-500.0,0.00022739,2]
[327757534,1716433850523,-1739.3,0.00022739,2]
[327757535,1716433850532,-873.15,0.00022739,2]
[327757536,1716433850543,-1771.71,0.00022739,2]
[327757537,1716433850552,-500.0,0.00022739,2]
[327757538,1716433850562,-500.0,0.00022739,2]
[327757539,1716433850571,-500.0,0.00022739,2]
[327757540,1716433850580,-685.19,0.00022739,2]
[327757541,1716433850589,-500.0,0.00022739,2]
[327757542,1716433850599,-500.0,0.00022739,2]
[327757543,1716433850608,-582.59,0.00022739,2]
[327757544,1716433850618,-500.0,0.00022739,2]
[327757545,1716433850628,-204.91246304,0.00022739,2]
[327757546,1716433850637,-613.48,0.00022739,2]
[327757547,1716433850646,-500.0,0.00022739,2]
[327757548,1716433850656,-5238.33,0.00022739,2]
[327757549,1716433850665,-529.14,0.00022739,2]
[327757550,1716433850675,-595.53,0.00022739,2]
[327757551,1716433850684,-606.89,0.00022739,2]
[327757552,1716433850693,-2537.45,0.00022739,2]
[327757553,1716433850702,-500.0,0.00022739,2]
[327757554,1716433850711,-500.0,0.00022739,2]
[327757555,1716433850720,-880.76,0.00022739,2]
[327757556,1716433850729,-500.0,0.00022739,2]
[327757557,1716433850738,-607.46,0.00022739,2]
[327757558,1716433850748,-524.29,0.00022739,2]
[327757559,1716433850757,-500.0,0.00022739,2]
[327757560,1716433850767,-500.0,0.00022739,2]
[327757561,1716433850776,-500.0,0.00022739,2]
[327757562,1716433850786,-500.0,0.00022739,2]
[327757563,1716433850795,-500.0,0.00022739,2]
[327757564,1716433850804,-550.61,0.00022739,2]
[327757565,1716433850814,-500.0,0.00022739,2]
[327757566,1716433850823,-1522.56,0.00022739,2]
[327757567,1716433850832,-500.0,0.00022739,2]
[327757568,1716433850841,-500.0,0.00022739,2]
[327757569,1716433850851,-592.5,0.00022739,2]
[327757570,1716433850860,-1076.31,0.00022739,2]
[327757571,1716433850869,-500.0,0.00022739,2]
[327757572,1716433850881,-500.0,0.00022739,2]
[327757573,1716433850892,-500.0,0.00022739,2]
[327757574,1716433850901,-695.88,0.00022739,2]
[327757575,1716433850910,-500.0,0.00022739,2]
[327757576,1716433850919,-500.0,0.00022739,2]
[327757577,1716433850930,-872.35,0.00022739,2]
[327757578,1716433850939,-500.0,0.00022739,2]
[327757579,1716433850948,-167.0,0.0002276,2]
[327757580,1716433850958,-217.46330254,0.00022769,2]
[327757581,1716433850968,-166.66666667,0.00022784,2]
[327757582,1716433850978,-805.42159561,0.00022784,2]
[327757583,1716433850986,-165.43186829,0.00022799,2]
[327757584,1716433850995,-158.88121134,0.00022825,2]
[327757585,1716433851005,-170.50926163,0.00022858,2]
[327757586,1716433851014,-1882.6261878,0.00022858,2]
[327757587,1716433851023,-176.97177388,0.00022858,2]
[327757588,1716433851032,-154.03112156,0.00022868,2]
[327757589,1716433851042,-154.03112156,0.00022873,2]
[327757590,1716433851051,-486.44330333,0.00022923,2]
[327757591,1716433851060,-178.06496912,0.00022937,2]
[327757592,1716433851070,-605.93690874,0.00022985,2]
[327757593,1716433851080,-605.93690874,0.00022999,2]
[327757594,1716433851089,-5512.46730855,0.00023,2]
[327757595,1716433851098,-2800.0,0.00023,2]
[327757596,1716433851107,-150.0,0.00023,3]
[327757597,1716433851116,-150.0,0.00023012,2]
[327757598,1716433851125,-500.0,0.00023013,2]
[327757599,1716433851134,-517.19,0.00023013,2]
[327757600,1716433851144,-500.0,0.00023013,2]
[327757601,1716433851153,-1016.48,0.00023013,2]
[327757602,1716433851162,-500.0,0.00023013,2]
[327757603,1716433851171,-500.0,0.00023013,2]
[327757604,1716433851180,-500.0,0.00023013,2]
[327757605,1716433851190,-500.0,0.00023013,2]
[327757606,1716433851199,-500.0,0.00023013,2]
[327757607,1716433851208,-645.8967104,0.00023013,2]
[327757608,1716433851217,-500.0,0.00023013,2]
[327757609,1716433851226,-500.0,0.00023013,2]
[327757610,1716433851235,-500.0,0.00023013,2]
[327757611,1716433851244,-500.0,0.00023013,2]
[327757612,1716433851254,-500.0,0.00023013,2]
[327757613,1716433851263,-500.0,0.00023013,2]
[327757614,1716433851273,-500.0,0.00023013,2]
[327757615,1716433851282,-500.0,0.00023013,2]
[327757616,1716433851291,-587.43,0.00023013,2]
[327757617,1716433851301,-27.56467031,0.00023013,2]
[327757618,1716433851317,-472.43532969,0.00023013,2]
[327757619,1716433851326,-500.0,0.00023013,2]
[327757620,1716433851335,-619.1187504,0.00023013,2]
[327757621,1716433851345,-430.97387274,0.00023013,2]
[327757622,1716433851357,-184.14612726,0.00023013,2]
[327757623,1716433851366,-199.97478229,0.00023013,2]
[327757624,1716433851423,-300.02521771,0.00023013,2]
[327757625,1716433851433,-558.46,0.00023013,2]
[327757626,1716433851442,-467.32698771,0.00023013,2]
[327757627,1716433851453,-32.67301229,0.00023013,2]
[327757628,1716433851462,-500.0,0.00023013,2]
[327757629,1716433851471,-500.0,0.00023013,2]
[327757630,1716433851480,-554.23,0.00023013,2]
[327757631,1716433851489,-500.0,0.00023013,2]
[327757632,1716433851499,-500.0,0.00023013,2]
[327757633,1716433851508,-500.0,0.00023013,2]
[327757634,1716433851517,-410.33336404,0.00023013,2]
[327757635,1716433851526,-500.0,0.00023013,2]
[327757636,1716433851535,-500.0,0.00023013,2]
[327757637,1716433851546,-500.0,0.00023013,2]
[327757638,1716433851555,-500.0,0.00023013,2]
[327757639,1716433851564,-500.0,0.00023013,2]
[327757640,1716433851573,-500.0,0.00023013,2]
[327757641,1716433851582,-500.0,0.00023013,2]
[327757642,1716433851591,-500.0,0.00023013,2]
[327757643,1716433851601,-592.37,0.00023013,2]
[327757644,1716433851610,-529.04153125,0.00023013,2]
[327757645,1716433851619,-1137.74,0.00023013,2]
[327757646,1716433851628,-500.0,0.00023013,2]
[327757647,1716433851637,-500.0,0.00023013,2]
[327757648,1716433851646,-500.0,0.00023013,2]
[327757649,1716433851655,-500.0,0.00023013,2]
[327757650,1716433851664,-500.0,0.00023013,2]
[327757651,1716433851673,-500.0,0.00023013,2]
[327757652,1716433851682,-500.0,0.00023013,2]
[327757653,1716433851691,-500.0,0.00023013,2]
[327757654,1716433851700,-500.0,0.00023013,2]
[327757655,1716433851709,-500.0,0.00023013,2]
[327757656,1716433851719,-500.0,0.00023013,2]
[327757657,1716433851728,-500.0,0.00023013,2]
[327757658,1716433851738,-500.0,0.00023013,2]
[327757659,1716433851747,-500.0,0.00023013,2]
[327757660,1716433851756,-500.0,0.00023013,2]
[327757661,1716433851765,-500.0,0.00023013,2]
[327757662,1716433851774,-349.75716792,0.00023013,2]
[327757663,1716433851783,-500.0,0.00023013,2]
[327757664,1716433851792,-500.0,0.00023013,2]
[327757665,1716433851802,-500.0,0.00023013,2]
[327757666,1716433851811,-668.98,0.00023013,2]
[327757667,1716433851820,-500.0,0.00023013,2]
[327757668,1716433851829,-500.0,0.00023013,2]
[327757669,1716433851838,-500.0,0.00023013,2]
[327757670,1716433851847,-873.08,0.00023013,2]
[327757671,1716433851856,-185.98,0.00023013,2]
[327757672,1716433851865,-500.0,0.00023013,2]
[327757673,1716433851875,-500.0,0.00023013,2]
[327757674,1716433851890,-299.76923407,0.00023013,2]
[327757675,1716433851899,-500.0,0.00023013,2]
[327757676,1716433851908,-500.0,0.00023013,2]
[327757677,1716433851919,-500.0,0.00023013,2]
[327757678,1716433851928,-283.07277376,0.00023013,2]
[327757679,1716433851937,-500.0,0.00023013,2]
[327757680,1716433851946,-500.0,0.00023013,2]
[327757681,1716433851957,-500.0,0.00023013,2]
[327757682,1716433851966,-500.0,0.00023013,2]
[327757683,1716433851975,-746.18302243,0.00023013,2]
[327757684,1716433851987,-228.01697757,0.00023013,2]
[327757685,1716433851995,-1288.63,0.00023013,2]
[327757686,1716433852005,-500.0,0.00023013,2]
[327757687,1716433852013,-500.0,0.00023013,2]
[327757688,1716433852022,-500.0,0.00023013,2]
[327757689,1716433852031,-500.0,0.00023013,2]
[327757690,1716433852040,-912.57,0.00023013,2]
[327757691,1716433852050,-500.0,0.00023013,2]
[327757692,1716433852059,-500.0,0.00023013,2]
[327757693,1716433852068,-1117.18,0.00023013,2]
[327757694,1716433852076,-500.0,0.00023013,2]
[327757695,1716433852086,-500.0,0.00023013,2]
[327757696,1716433852095,-1375.12,0.00023013,2]
[327757697,1716433852104,-500.0,0.00023013,2]
[327757698,1716433852112,-500.0,0.00023013,2]
[327757699,1716433852121,-842.65,0.00023013,2]
[327757700,1716433852131,-500.12,0.00023013,2]
[327757701,1716433852140,-501.51,0.00023013,2]
[327757702,1716433852149,-500.0,0.00023013,2]
[327757703,1716433852158,-1776.08,0.00023013,2]
[327757704,1716433852167,-500.0,0.00023013,2]
[327757705,1716433852176,-2564.67,0.00023013,2]
[327757706,1716433852186,-500.0,0.00023013,2]
[327757707,1716433852195,-1105.67,0.00023013,2]
[327757708,1716433852203,-4406.06867715,0.00023013,2]
[327757709,1716433852215,-3013.19132285,0.00023013,2]
[327757710,1716433852224,-350.00080252,0.00023013,2]
[327757711,1716433852235,-149.99919748,0.00023013,2]
[327757712,1716433852244,-453.95680055,0.00023013,2]
[327757713,1716433852253,-253.28062098,0.00023013,2]
[327757714,1716433852264,-1127.85937902,0.00023013,2]
[327757715,1716433852273,-294.83553118,0.00023013,2]
[327757716,1716433852284,-205.16446882,0.00023013,2]
[327757717,1716433852294,-524.6578187,0.00023013,2]
[327757718,1716433852521,-224.5993503,0.00021815,2]
[327757719,1716433852541,-437.87874875,0.00021917,2]
[327757720,1716433852555,-62.12125125,0.00021917,2]
[327757721,1716433852564,-552.1,0.00021917,2]
[327757722,1716433852573,-500.0,0.00022191,2]
[327757723,1716433852583,-500.0,0.00022465,2]
[327757724,1716433852593,-500.0,0.00022739,2]
[327757725,1716433852602,-41.6921813,0.00023013,2]
[327757726,1716433852612,-500.0,0.00023013,2]
[327757727,1716433852621,-500.0,0.00023013,2]
[327757728,1716433852630,-500.0,0.00023013,2]
[327757729,1716433852639,-500.0,0.00023013,2]
[327757730,1716433852650,-637.99,0.00023013,2]
[327757731,1716433852660,-103.01656745,0.00023013,2]
[327757732,1716433852672,-396.98343255,0.00023013,2]
[327757733,1716433852682,-23.26811345,0.00023013,2]
[327757734,1716433852693,-989.27984073,0.00023013,2]
[327757735,1716433852818,-500.0,0.00021917,2]
[327757736,1716433852828,-162.38136993,0.00021917,2]
[327757737,1716433852841,-427.60863007,0.00021917,2]
[327757738,1716433852851,-218.56218473,0.00023013,2]
[327757739,1716433852870,-88.31986109,0.00023013,2]
[327757740,1716433852881,-451.0801446,0.00023013,2]
[327757741,1716433852894,-48.9198554,0.00023013,2]
[327757742,1716433852903,-224.86190442,0.00023013,2]
[327757743,1716433852915,-275.13809558,0.00023013,2]
[327757744,1716433852924,-220.18345615,0.00023013,2]
[327757745,1716433852935,-279.81654385,0.00023013,2]
[327757746,1716433852944,-500.0,0.00023013,2]
[327757747,1716433852953,-324.81945745,0.00023013,2]
[327757748,1716433852967,-175.18054255,0.00023013,2]
[327757749,1716433852977,-500.0,0.00023013,2]
[327757750,1716433852986,-787.33,0.00023013,2]
[327757751,1716433852995,-4203.88,0.00023013,2]
[327757752,1716433853004,-500.0,0.00023013,2]
[327757753,1716433853013,-500.0,0.00023013,2]
[327757754,1716433853022,-1462.29,0.00023013,2]
[327757755,1716433853031,-500.0,0.00023013,2]
[327757756,1716433853040,-500.0,0.00023013,2]
[327757757,1716433853050,-500.0,0.00023013,2]
[327757758,1716433853060,-500.0,0.00023013,2]
[327757759,1716433853069,-2886.35,0.00023013,2]
[327757760,1716433853078,-500.0,0.00023013,2]
[327757761,1716433853087,-500.0,0.00023013,2]
[327757762,1716433853097,-500.0,0.00023013,2]
[327757763,1716433853106,-500.0,0.00023013,2]
[327757764,1716433853116,-500.0,0.00023013,2]
[327757765,1716433853125,-529.07,0.00023013,2]
[327757766,1716433853134,-645.65,0.00023013,2]
[327757767,1716433853144,-500.49,0.00023013,2]
[327757768,1716433853153,-500.0,0.00023013,2]
[327757769,1716433853167,-613.89,0.00023013,2]
[327757770,1716433853176,-500.0,0.00023013,2]
[327757771,1716433853185,-643.78,0.00023013,2]
[327757772,1716433853195,-605.44,0.00023013,2]
[327757773,1716433853204,-2854.9601554,0.00023013,2]
[327757774,1716433853216,-418.8498446,0.00023013,2]
[327757775,1716433853226,-500.0,0.00023013,2]
[327757776,1716433853235,-500.0,0.00023013,2]
[327757777,1716433853244,-500.0,0.00023013,2]
[327757778,1716433853254,-500.61,0.00023013,2]
[327757779,1716433853264,-1213.75,0.00023013,2]
[327757780,1716433853273,-500.0,0.00023013,2]
[327757781,1716433853282,-500.0,0.00023013,2]
[327757782,1716433853292,-743.8,0.00023013,2]
[327757783,1716433853303,-500.0,0.00023013,2]
[327757784,1716433853312,-500.0,0.00023013,2]
[327757785,1716433853321,-510.99395053,0.00023013,2]
[327757786,1716433853331,-500.0,0.00023013,2]
[327757787,1716433853340,-500.0,0.00023013,2]
[327757788,1716433853349,-2826.78,0.00023013,2]
[327757789,1716433853358,-500.0,0.00023013,2]
[327757790,1716433853367,-204.40490173,0.00023013,2]
[327757791,1716433853376,-554.79007705,0.00023013,2]
[327757792,1716433853386,-335.27323043,0.00023013,2]
[327757793,1716433853395,-539.98,0.00023013,2]
[327757794,1716433853405,-962.49,0.00023013,2]
[327757795,1716433853415,-776.86,0.00023013,2]
[327757796,1716433853424,-500.0,0.00023013,2]
[327757797,1716433853434,-500.0,0.00023013,2]
[327757798,1716433853443,-500.0,0.00023013,2]
[327757799,1716433853452,-809.89,0.00023013,2]
[327757800,1716433853462,-560.91,0.00023013,2]
[327757801,1716433853471,-501.66,0.00023013,2]
[327757802,1716433853480,-1401.24,0.00023013,2]
[327757803,1716433853491,-597.1,0.00023013,2]
[327757804,1716433853500,-500.0,0.00023013,2]
[327757805,1716433853509,-594.65,0.00023013,2]
[327757806,1716433853518,-500.0,0.00023013,2]
[327757807,1716433853528,-1739.3,0.00023013,2]
[327757808,1716433853537,-873.15,0.00023013,2]
[327757809,1716433853547,-1771.71,0.00023013,2]
[327757810,1716433853556,-500.0,0.00023013,2]
[327757811,1716433853565,-500.0,0.00023013,2]
[327757812,1716433853575,-476.1562954,0.00023013,2]
[327757813,1716433853584,-685.19,0.00023013,2]
[327757814,1716433853593,-500.0,0.00023013,2]
[327757815,1716433853602,-500.0,0.00023013,2]
[327757816,1716433853612,-582.59,0.00023013,2]
[327757817,1716433853621,-500.0,0.00023013,2]
[327757818,1716433853630,-613.48,0.00023013,2]
[327757819,1716433853640,-500.0,0.00023013,2]
[327757820,1716433853650,-5238.33,0.00023013,2]
[327757821,1716433853660,-529.14,0.00023013,2]
[327757822,1716433853669,-595.53,0.00023013,2]
[327757823,1716433853678,-606.89,0.00023013,2]
[327757824,1716433853687,-2537.45,0.00023013,2]
[327757825,1716433853696,-500.0,0.00023013,2]
[327757826,1716433853706,-500.0,0.00023013,2]
[327757827,1716433853717,-880.76,0.00023013,2]
[327757828,1716433853728,-500.0,0.00023013,2]
[327757829,1716433853739,-607.46,0.00023013,2]
[327757830,1716433853750,-524.29,0.00023013,2]
[327757831,1716433853760,-500.0,0.00023013,2]
[327757832,1716433853771,-500.0,0.00023013,2]
[327757833,1716433853780,-500.0,0.00023013,2]
[327757834,1716433853791,-500.0,0.00023013,2]
[327757835,1716433853800,-500.0,0.00023013,2]
[327757836,1716433853810,-500.0,0.00023013,2]
[327757837,1716433853819,-550.61,0.00023013,2]
[327757838,1716433853828,-1522.56,0.00023013,2]
[327757839,1716433853837,-500.0,0.00023013,2]
[327757840,1716433853847,-500.0,0.00023013,2]
[327757841,1716433853856,-592.5,0.00023013,2]
[327757842,1716433853866,-1076.31,0.00023013,2]
[327757843,1716433853876,-500.0,0.00023013,2]
[327757844,1716433853889,-500.0,0.00023013,2]
[327757845,1716433853899,-500.0,0.00023013,2]
[327757846,1716433853908,-695.88,0.00023013,2]
[327757847,1716433853919,-500.0,0.00023013,2]
[327757848,1716433853928,-500.0,0.00023013,2]
[327757849,1716433853938,-872.35,0.00023013,2]
[327757850,1716433853947,-500.0,0.00023013,2]
[327757851,1716433853956,-500.0,0.00023013,2]
[327757852,1716433853967,-158.97861239,0.00023018,2]
[327757853,1716433853977,-155.23876969,0.00023056,2]
[327757854,1716433853987,-233.348649,0.00023079,2]
[327757855,1716433853996,-152.50544893,0.00023089,2]
[327757856,1716433854005,-423.97000647,0.0002311,2]
[327757857,1716433854015,-167.99941387,0.00023115,2]
[327757858,1716433854025,-605.93690874,0.00023133,2]
[327757859,1716433854035,-156.74272551,0.00023176,2]
[327757860,1716433854044,-800.0,0.00023205,2]
[327757861,1716433854054,-166.66666666,0.00023235,2]
[327757862,1716433854064,-1578.7648604,0.0002327,2]
[327757863,1716433854073,-500.0,0.00023287,2]
[327757864,1716433854083,-517.19,0.00023287,2]
[327757865,1716433854092,-500.0,0.00023287,2]
[327757866,1716433854102,-1016.48,0.00023287,2]
[327757867,1716433854111,-500.0,0.00023287,2]
[327757868,1716433854120,-500.0,0.00023287,2]
[327757869,1716433854130,-500.0,0.00023287,2]
[327757870,1716433854139,-500.0,0.00023287,2]
[327757871,1716433854148,-500.0,0.00023287,2]
[327757872,1716433854157,-500.0,0.00023287,2]
[327757873,1716433854167,-500.0,0.00023287,2]
[327757874,1716433854176,-500.0,0.00023287,2]
[327757875,1716433854185,-500.0,0.00023287,2]
[327757876,1716433854195,-500.0,0.00023287,2]
[327757877,1716433854204,-500.0,0.00023287,2]
[327757878,1716433854214,-500.0,0.00023287,2]
[327757879,1716433854223,-587.43,0.00023287,2]
[327757880,1716433854232,-500.0,0.00023287,2]
[327757881,1716433854241,-500.0,0.00023287,2]
[327757882,1716433854250,-615.12,0.00023287,2]
[327757883,1716433854259,-500.0,0.00023287,2]
[327757884,1716433854269,-558.46,0.00023287,2]
[327757885,1716433854278,-381.16239122,0.00023287,2]
[327757886,1716433854287,-500.0,0.00023287,2]
[327757887,1716433854296,-500.0,0.00023287,2]
[327757888,1716433854306,-554.23,0.00023287,2]
[327757889,1716433854315,-338.03615596,0.00023287,2]
[327757890,1716433854489,-500.0,0.00021917,2]
[327757891,1716433854498,-206.04,0.00022191,2]
[327757892,1716433854508,-161.96384404,0.00023287,2]
[327757893,1716433854518,-500.0,0.00023287,2]
[327757894,1716433854527,-500.0,0.00023287,2]
[327757895,1716433854536,-500.0,0.00023287,2]
[327757896,1716433854546,-500.0,0.00023287,2]
[327757897,1716433854556,-500.0,0.00023287,2]
[327757898,1716433854565,-500.0,0.00023287,2]
[327757899,1716433854575,-500.0,0.00023287,2]
[327757900,1716433854584,-500.0,0.00023287,2]
[327757901,1716433854594,-500.0,0.00023287,2]
[327757902,1716433854604,-500.0,0.00023287,2]
[327757903,1716433854614,-592.37,0.00023287,2]
[327757904,1716433854623,-1137.74,0.00023287,2]
[327757905,1716433854633,-500.0,0.00023287,2]
[327757906,1716433854643,-500.0,0.00023287,2]
[327757907,1716433854652,-500.0,0.00023287,2]
[327757908,1716433854661,-500.0,0.00023287,2]
[327757909,1716433854671,-500.0,0.00023287,2]
[327757910,1716433854680,-500.0,0.00023287,2]
[327757911,1716433854689,-500.0,0.00023287,2]
[327757912,1716433854698,-500.0,0.00023287,2]
[327757913,1716433854714,-500.0,0.00023287,2]
[327757914,1716433854726,-500.0,0.00023287,2]
[327757915,1716433854736,-500.0,0.00023287,2]
[327757916,1716433854746,-500.0,0.00023287,2]
[327757917,1716433854756,-500.0,0.00023287,2]
[327757918,1716433854766,-500.0,0.00023287,2]
[327757919,1716433854776,-500.0,0.00023287,2]
[327757920,1716433854786,-500.0,0.00023287,2]
[327757921,1716433854798,-500.0,0.00023287,2]
[327757922,1716433854809,-500.0,0.00023287,2]
[327757923,1716433854819,-500.0,0.00023287,2]
[327757924,1716433854829,-668.98,0.00023287,2]
[327757925,1716433854839,-500.0,0.00023287,2]
[327757926,1716433854849,-500.0,0.00023287,2]
[327757927,1716433854859,-500.0,0.00023287,2]
[327757928,1716433854869,-873.08,0.00023287,2]
[327757929,1716433854882,-185.98,0.00023287,2]
[327757930,1716433854894,-500.0,0.00023287,2]
[327757931,1716433854904,-500.0,0.00023287,2]
[327757932,1716433854914,-500.0,0.00023287,2]
[327757933,1716433854925,-500.0,0.00023287,2]
[327757934,1716433854935,-248.24579063,0.00023287,2]
[327757935,1716433854945,-500.0,0.00023287,2]
[327757936,1716433854957,-500.0,0.00023287,2]
[327757937,1716433854970,-272.29543095,0.00023287,2]
[327757938,1716433854980,-500.0,0.00023287,2]
[327757939,1716433854991,-974.2,0.00023287,2]
[327757940,1716433855001,-1288.63,0.00023287,2]
[327757941,1716433855011,-500.0,0.00023287,2]
[327757942,1716433855021,-500.0,0.00023287,2]
[327757943,1716433855032,-500.0,0.00023287,2]
[327757944,1716433855042,-500.0,0.00023287,2]
[327757945,1716433855053,-912.57,0.00023287,2]
[327757946,1716433855064,-500.0,0.00023287,2]
[327757947,1716433855074,-500.0,0.00023287,2]
[327757948,1716433855084,-1117.18,0.00023287,2]
[327757949,1716433855094,-500.0,0.00023287,2]
[327757950,1716433855104,-1375.12,0.00023287,2]
[327757951,1716433855114,-500.0,0.00023287,2]
[327757952,1716433855124,-500.0,0.00023287,2]
[327757953,1716433855135,-842.65,0.00023287,2]
[327757954,1716433855146,-501.51,0.00023287,2]
[327757955,1716433855156,-500.0,0.00023287,2]
[327757956,1716433855166,-1776.08,0.00023287,2]
[327757957,1716433855177,-500.0,0.00023287,2]
[327757958,1716433855187,-2564.67,0.00023287,2]
[327757959,1716433855198,-500.0,0.00023287,2]
[327757960,1716433855208,-1105.67,0.00023287,2]
[327757961,1716433855218,-7419.26,0.00023287,2]
[327757962,1716433855229,-500.0,0.00023287,2]
[327757963,1716433855239,-1381.14,0.00023287,2]
[327757964,1716433855250,-566.35,0.00023287,2]
[327757965,1716433855260,-500.0,0.00023287,2]
[327757966,1716433855271,-500.0,0.00023287,2]
[327757967,1716433855281,-500.0,0.00023287,2]
[327757968,1716433855291,-500.0,0.00023287,2]
[327757969,1716433855302,-500.0,0.00023287,2]
[327757970,1716433855313,-637.99,0.00023287,2]
[327757971,1716433855324,-500.0,0.00023287,2]